fUST/lending_fUST_20260528
["ID","MTS","AMOUNT","RATE_DAILY","PERIOD"]
[423223617,1779948647000,-10388.04618276,0.00011,2]
[423223614,1779948647000,-10388.04618276,0.000109,2]
[423223615,1779948647000,-500.0,0.00010958,2]
[423223613,1779948647000,-6564.23733056,0.000108,2]
[423223616,1779948647000,-541.88701796,0.00010958,2]
[423223618,1779948647000,-10388.04618276,0.000112,2]
[423223623,1779948647000,-621.30023254,0.000113,2]
[423223620,1779948647000,-1000.0,0.00011255,2]
[423223622,1779948647000,-22388.52331788,0.000113,2]
[423223621,1779948647000,-10388.04618276,0.000113,2]
[423223624,1779948647000,-4283.74120016,0.000114,2]
[423223625,1779948647000,-307.708,0.000114,2]
[423223619,1779948647000,-500.0,0.00011232,2]
[423223642,1779949184000,5112.24065966,0.00019178,120]
[423223690,1779949831000,-675.33466858,8.118e-05,2]
[423223689,1779949831000,-675.33466858,8.118e-05,2]
[423223679,1779949831000,-675.33466858,8.118e-05,2]
[423223677,1779949831000,-675.33466858,8.118e-05,2]
[423223668,1779949831000,-5000.0,8e-05,2]
[423223676,1779949831000,-675.33466858,8.118e-05,2]
[423223675,1779949831000,-675.33466858,8.118e-05,2]
[423223672,1779949831000,-340.50869235,8.117e-05,2]
[423223671,1779949831000,-500.0,8.117e-05,2]
[423223674,1779949831000,-2150.25401422,8.118e-05,2]
[423223670,1779949831000,-500.0,8.117e-05,2]
[423223667,1779949831000,-1987.53122356,8e-05,2]
[423223669,1779949831000,-363.979059,8.036e-05,2]
[423223664,1779949831000,-229.0,7.999e-05,2]
[423223666,1779949831000,-273.47357861,8e-05,2]
[423223665,1779949831000,-302.20392564,7.999e-05,2]
[423223673,1779949831000,-147.94684786,8.118e-05,2]
[423223691,1779949831000,-675.33466858,8.118e-05,2]
[423223680,1779949831000,-675.33466858,8.118e-05,2]
[423223681,1779949831000,-675.33466858,8.118e-05,2]
[423223700,1779949831000,-709.10140201,8.118e-05,2]
[423223697,1779949831000,-129.95327355,8.118e-05,2]
[423223701,1779949831000,-709.10140201,8.118e-05,2]
[423223698,1779949831000,-709.10140201,8.118e-05,2]
[423223695,1779949831000,-675.33466858,8.118e-05,2]
[423223699,1779949831000,-709.10140201,8.118e-05,2]
[423223684,1779949831000,-675.33466858,8.118e-05,2]
[423223692,1779949831000,-675.33466858,8.118e-05,2]
[423223694,1779949831000,-675.33466858,8.118e-05,2]
[423223693,1779949831000,-675.33466858,8.118e-05,2]
[423223686,1779949831000,-675.33466858,8.118e-05,2]
[423223683,1779949831000,-675.33466858,8.118e-05,2]
[423223685,1779949831000,-675.33466858,8.118e-05,2]
[423223688,1779949831000,-356.27003718,8.118e-05,2]
[423223687,1779949831000,-319.0646314,8.118e-05,2]
[423223682,1779949831000,-675.33466858,8.118e-05,2]
[423223696,1779949831000,-579.14812846,8.118e-05,2]
[423223709,1779949832000,-3449.70144178,8.119e-05,2]
[423223703,1779949832000,-709.10140201,8.118e-05,2]
[423223702,1779949832000,-709.10140201,8.118e-05,2]
[423223707,1779949832000,-808.37559829,8.118e-05,2]
[423223705,1779949832000,-709.10140201,8.118e-05,2]
[423223706,1779949832000,-709.10140201,8.118e-05,2]
[423223708,1779949832000,-808.37559829,8.118e-05,2]
[423223710,1779949832000,-7298.0,8.119e-05,2]
[423223704,1779949832000,-709.10140201,8.118e-05,2]
[423223760,1779949838000,-500.0,8.219e-05,2]
[423223765,1779949838000,-500.0,8.219e-05,2]
[423223773,1779949838000,-500.0,8.219e-05,2]
[423223770,1779949838000,-500.0,8.219e-05,2]
[423223772,1779949838000,-500.0,8.219e-05,2]
[423223780,1779949838000,-500.0,8.219e-05,2]
[423223769,1779949838000,-500.38990564,8.219e-05,2]
[423223774,1779949838000,-1634.13,8.219e-05,2]
[423223758,1779949838000,-500.0,8.219e-05,2]
[423223781,1779949838000,-500.0,8.219e-05,2]
[423223776,1779949838000,-502.05352927,8.219e-05,2]
[423223778,1779949838000,-500.69550316,8.219e-05,2]
[423223779,1779949838000,-339.40159126,8.219e-05,2]
[423223777,1779949838000,-500.0,8.219e-05,2]
[423223782,1779949838000,-500.0,8.219e-05,2]
[423223771,1779949838000,-500.0,8.219e-05,2]
[423223764,1779949838000,-505.00000006,8.219e-05,2]
[423223762,1779949838000,-500.0,8.219e-05,2]
[423223784,1779949838000,-1281.4093,8.219e-05,2]
[423223746,1779949838000,-281.01403108,8.119e-05,2]
[423223748,1779949838000,-500.0,8.219e-05,2]
[423223747,1779949838000,-96358.13242066,8.119e-05,2]
[423223750,1779949838000,-500.0,8.219e-05,2]
[423223751,1779949838000,-490.0,8.219e-05,2]
[423223749,1779949838000,-189.8702946,8.219e-05,2]
[423223752,1779949838000,-500.0,8.219e-05,2]
[423223754,1779949838000,-500.0,8.219e-05,2]
[423223753,1779949838000,-500.0,8.219e-05,2]
[423223756,1779949838000,-500.0,8.219e-05,2]
[423223766,1779949838000,-500.0,8.219e-05,2]
[423223755,1779949838000,-500.0,8.219e-05,2]
[423223767,1779949838000,-500.0,8.219e-05,2]
[423223757,1779949838000,-500.0,8.219e-05,2]
[423223768,1779949838000,-625.86908226,8.219e-05,2]
[423223759,1779949838000,-500.0,8.219e-05,2]
[423223761,1779949838000,-623.53674622,8.219e-05,2]
[423223763,1779949838000,-500.0,8.219e-05,2]
[423223791,1779949838000,-500.0,8.219e-05,2]
[423223775,1779949838000,-500.0,8.219e-05,2]
[423223793,1779949838000,-500.0,8.219e-05,2]
[423223808,1779949838000,-500.0,8.219e-05,2]
[423223816,1779949838000,-500.0,8.219e-05,2]
[423223819,1779949838000,-363.979059,8.375e-05,2]
[423223817,1779949838000,-500.0,8.219e-05,2]
[423223813,1779949838000,-500.0,8.219e-05,2]
[423223809,1779949838000,-500.0,8.219e-05,2]
[423223814,1779949838000,-500.0,8.219e-05,2]
[423223783,1779949838000,-246.47601513,8.219e-05,2]
[423223818,1779949838000,-501.746831,8.219e-05,2]
[423223815,1779949838000,-184.10873058,8.219e-05,2]
[423223811,1779949838000,-463.94,8.219e-05,2]
[423223812,1779949838000,-903.36,8.219e-05,2]
[423223821,1779949838000,-600.0,8.382e-05,2]
[423223823,1779949838000,-398.97496663,8.391e-05,2]
[423223822,1779949838000,-58765.02041924,8.391e-05,2]
[423223820,1779949838000,-235.13414493,8.381e-05,2]
[423223824,1779949838000,-85433.33245354,8.391e-05,2]
[423223807,1779949838000,-500.0,8.219e-05,2]
[423223806,1779949838000,-500.0,8.219e-05,2]
[423223810,1779949838000,-500.0,8.219e-05,2]
[423223796,1779949838000,-500.0,8.219e-05,2]
[423223790,1779949838000,-451.53501221,8.219e-05,2]
[423223786,1779949838000,-500.0,8.219e-05,2]
[423223785,1779949838000,-380.23771817,8.219e-05,2]
[423223787,1779949838000,-500.0,8.219e-05,2]
[423223789,1779949838000,-500.0,8.219e-05,2]
[423223788,1779949838000,-500.0,8.219e-05,2]
[423223792,1779949838000,-500.0,8.219e-05,2]
[423223794,1779949838000,-500.0,8.219e-05,2]
[423223795,1779949838000,-500.0,8.219e-05,2]
[423223805,1779949838000,-500.0,8.219e-05,2]
[423223803,1779949838000,-500.0,8.219e-05,2]
[423223798,1779949838000,-500.0,8.219e-05,2]
[423223800,1779949838000,-500.0,8.219e-05,2]
[423223802,1779949838000,-500.0,8.219e-05,2]
[423223804,1779949838000,-183.04041654,8.219e-05,2]
[423223799,1779949838000,-500.0,8.219e-05,2]
[423223797,1779949838000,-500.0,8.219e-05,2]
[423223801,1779949838000,-500.0,8.219e-05,2]
[423223831,1779949840000,-18236.72177795,8.391e-05,2]
[423223830,1779949840000,-498.19580677,8.391e-05,2]
[423223863,1779949843000,-361.0,8.391e-05,2]
[423223856,1779949843000,-2060.3243339,8.391e-05,2]
[423223858,1779949843000,-3197.03465272,8.391e-05,2]
[423223857,1779949843000,-36660.32530945,8.391e-05,2]
[423223855,1779949843000,-32299.5654244,8.391e-05,2]
[423223862,1779949843000,-1685.13490409,8.391e-05,2]
[423223861,1779949843000,-568.02726802,8.391e-05,2]
[423223860,1779949843000,-4479.15198489,8.391e-05,2]
[423223859,1779949843000,-2687.75258541,8.391e-05,2]
[423223883,1779949846000,-13925.42894494,8.391e-05,2]
[423223884,1779949846000,-27010.50162175,8.391e-05,2]
[423223882,1779949846000,-5000.0,8.307e-05,2]
[423223901,1779950255000,588.98,0.0001917,120]
[423223996,1779951035000,-102.33017559,7.056e-05,2]
[423223994,1779951035000,-451.1134074,7.013e-05,2]
[423223995,1779951035000,-228.12202728,7.056e-05,2]
[423223997,1779951035000,-300.0,7.186e-05,2]
[423224002,1779951035000,-418.46693739,7.493e-05,2]
[423224001,1779951035000,-1644.08106661,7.493e-05,2]
[423224003,1779951035000,-490.81698387,7.807e-05,2]
[423224000,1779951035000,-1075.35758169,7.187e-05,2]
[423223998,1779951035000,-1200.0,7.186e-05,2]
[423223999,1779951035000,-8240.64036441,7.187e-05,2]
[423224090,1779951038000,-500.0,7.807e-05,2]
[423224116,1779951038000,-509.94595206,7.917e-05,2]
[423224119,1779951038000,-509.94595206,7.917e-05,2]
[423224106,1779951038000,-2062.548004,7.808e-05,2]
[423224108,1779951038000,-1680.0,7.905e-05,2]
[423224112,1779951038000,-509.94595206,7.917e-05,2]
[423224110,1779951038000,-509.94595206,7.917e-05,2]
[423224114,1779951038000,-509.94595206,7.917e-05,2]
[423224133,1779951038000,-509.94595206,7.917e-05,2]
[423224131,1779951038000,-509.94595206,7.917e-05,2]
[423224129,1779951038000,-509.94595206,7.917e-05,2]
[423224104,1779951038000,-500.0,7.807e-05,2]
[423224135,1779951038000,-509.94595206,7.917e-05,2]
[423224145,1779951038000,-509.94595206,7.917e-05,2]
[423224141,1779951038000,-509.94595206,7.917e-05,2]
[423224143,1779951038000,-509.94595206,7.917e-05,2]
[423224147,1779951038000,-509.94595206,7.917e-05,2]
[423224126,1779951038000,-509.94595206,7.917e-05,2]
[423224100,1779951038000,-500.0,7.807e-05,2]
[423224096,1779951038000,-500.0,7.807e-05,2]
[423224098,1779951038000,-500.0,7.807e-05,2]
[423224062,1779951038000,-9.18301613,7.807e-05,2]
[423224064,1779951038000,-500.0,7.807e-05,2]
[423224066,1779951038000,-500.0,7.807e-05,2]
[423224068,1779951038000,-500.0,7.807e-05,2]
[423224070,1779951038000,-500.0,7.807e-05,2]
[423224074,1779951038000,-500.0,7.807e-05,2]
[423224072,1779951038000,-487.96905458,7.807e-05,2]
[423224076,1779951038000,-500.0,7.807e-05,2]
[423224078,1779951038000,-500.0,7.807e-05,2]
[423224082,1779951038000,-500.0,7.807e-05,2]
[423224080,1779951038000,-500.0,7.807e-05,2]
[423224084,1779951038000,-500.0,7.807e-05,2]
[423224086,1779951038000,-500.0,7.807e-05,2]
[423224088,1779951038000,-500.0,7.807e-05,2]
[423224092,1779951038000,-500.0,7.807e-05,2]
[423224094,1779951038000,-405.10140635,7.807e-05,2]
[423224149,1779951038000,-4348.59348855,7.918e-05,2]
[423224102,1779951038000,-500.0,7.807e-05,2]
[423224151,1779951038000,-61186.73920844,7.919e-05,2]
[423224123,1779951038000,-509.94595206,7.917e-05,2]
[423224155,1779951038000,-778.70111579,8e-05,2]
[423224199,1779951038000,-500.0,8.219e-05,2]
[423224203,1779951038000,-500.0,8.219e-05,2]
[423224201,1779951038000,-444.60787638,8.219e-05,2]
[423224205,1779951038000,-500.0,8.219e-05,2]
[423224207,1779951038000,-444.72200402,8.219e-05,2]
[423224209,1779951038000,-500.0,8.219e-05,2]
[423224210,1779951038000,-500.0,8.219e-05,2]
[423224222,1779951038000,-500.0,8.219e-05,2]
[423224191,1779951038000,-500.0,8.219e-05,2]
[423224212,1779951038000,-500.0,8.219e-05,2]
[423224218,1779951038000,-500.0,8.219e-05,2]
[423224216,1779951038000,-500.0,8.219e-05,2]
[423224214,1779951038000,-500.0,8.219e-05,2]
[423224220,1779951038000,-500.0,8.219e-05,2]
[423224226,1779951038000,-1656.17,8.219e-05,2]
[423224232,1779951038000,-363.1080402,8.219e-05,2]
[423224228,1779951038000,-500.0,8.219e-05,2]
[423224230,1779951038000,-500.0,8.219e-05,2]
[423224153,1779951038000,-391.3516935,8e-05,2]
[423224187,1779951038000,-1566.04,8.219e-05,2]
[423224224,1779951038000,-395.34634442,8.219e-05,2]
[423224193,1779951038000,-500.0,8.219e-05,2]
[423224159,1779951038000,-600.0,8.074e-05,2]
[423224185,1779951038000,-500.87575633,8.219e-05,2]
[423224157,1779951038000,-5000.0,8e-05,2]
[423224161,1779951038000,-2062.548004,8.124e-05,2]
[423224171,1779951038000,-500.0,8.219e-05,2]
[423224169,1779951038000,-500.0,8.219e-05,2]
[423224165,1779951038000,-1139.7419,8.219e-05,2]
[423224167,1779951038000,-500.0,8.219e-05,2]
[423224177,1779951038000,-500.0,8.219e-05,2]
[423224163,1779951038000,-294.91,8.204e-05,2]
[423224173,1779951038000,-479.0,8.219e-05,2]
[423224175,1779951038000,-500.0,8.219e-05,2]
[423224179,1779951038000,-500.0,8.219e-05,2]
[423224181,1779951038000,-500.0,8.219e-05,2]
[423224183,1779951038000,-500.0,8.219e-05,2]
[423224197,1779951038000,-500.0,8.219e-05,2]
[423224195,1779951038000,-500.0,8.219e-05,2]
[423224189,1779951038000,-500.0,8.219e-05,2]
[423224313,1779951039000,-500.0,8.493e-05,2]
[423224315,1779951039000,-500.0,8.493e-05,2]
[423224311,1779951039000,-500.0,8.493e-05,2]
[423224307,1779951039000,-500.0,8.493e-05,2]
[423224301,1779951039000,-500.0,8.493e-05,2]
[423224305,1779951039000,-500.0,8.493e-05,2]
[423224297,1779951039000,-606.13253486,8.493e-05,2]
[423224299,1779951039000,-1656.17,8.493e-05,2]
[423224295,1779951039000,-500.0,8.493e-05,2]
[423224309,1779951039000,-504.1797628,8.493e-05,2]
[423224303,1779951039000,-500.0,8.493e-05,2]
[423224317,1779951039000,-500.0,8.493e-05,2]
[423224335,1779951039000,-500.0,8.767e-05,2]
[423224319,1779951039000,-275.65053622,8.507e-05,7]
[423224323,1779951039000,-585.37134455,8.703e-05,2]
[423224325,1779951039000,-2062.548004,8.755e-05,2]
[423224329,1779951039000,-500.0,8.767e-05,2]
[423224327,1779951039000,-500.0,8.767e-05,2]
[423224333,1779951039000,-500.0,8.767e-05,2]
[423224331,1779951039000,-500.0,8.767e-05,2]
[423224337,1779951039000,-500.0,8.767e-05,2]
[423224334,1779951039000,-1566.04,8.767e-05,2]
[423224336,1779951039000,-500.0,8.767e-05,2]
[423224293,1779951039000,-500.0,8.493e-05,2]
[423224338,1779951039000,-500.0,8.767e-05,2]
[423224321,1779951039000,-2351.0,8.695e-05,2]
[423224291,1779951039000,-500.0,8.493e-05,2]
[423224417,1779951039000,-500.0,9.041e-05,2]
[423224289,1779951039000,-500.0,8.493e-05,2]
[423224340,1779951039000,-500.0,8.767e-05,2]
[423224234,1779951039000,-500.0,8.219e-05,2]
[423224236,1779951039000,-500.0,8.219e-05,2]
[423224246,1779951039000,-500.0,8.219e-05,2]
[423224248,1779951039000,-500.0,8.219e-05,2]
[423224237,1779951039000,-500.0,8.219e-05,2]
[423224239,1779951039000,-500.0,8.219e-05,2]
[423224242,1779951039000,-500.0,8.219e-05,2]
[423224244,1779951039000,-266.16640272,8.219e-05,2]
[423224250,1779951039000,-169.4778512,8.278e-05,2]
[423224252,1779951039000,-13271.3080702,8.278e-05,2]
[423224254,1779951039000,-10153.8751537,8.278e-05,2]
[423224283,1779951039000,-500.0,8.493e-05,2]
[423224258,1779951039000,-2062.548004,8.439e-05,2]
[423224260,1779951039000,-500.0,8.493e-05,2]
[423224266,1779951039000,-500.0,8.493e-05,2]
[423224264,1779951039000,-500.0,8.493e-05,2]
[423224268,1779951039000,-1566.04,8.493e-05,2]
[423224262,1779951039000,-500.0,8.493e-05,2]
[423224272,1779951039000,-500.0,8.493e-05,2]
[423224274,1779951039000,-500.0,8.493e-05,2]
[423224279,1779951039000,-500.0,8.493e-05,2]
[423224277,1779951039000,-500.0,8.493e-05,2]
[423224281,1779951039000,-500.0,8.493e-05,2]
[423224285,1779951039000,-500.0,8.493e-05,2]
[423224287,1779951039000,-500.0,8.493e-05,2]
[423224256,1779951039000,-232.1731865,8.278e-05,2]
[423224342,1779951039000,-500.0,8.767e-05,2]
[423224426,1779951039000,-500.0,9.041e-05,2]
[423224346,1779951039000,-500.0,8.767e-05,2]
[423224407,1779951039000,-500.0,9.041e-05,2]
[423224409,1779951039000,-346.44287505,9.041e-05,2]
[423224411,1779951039000,-1656.17,9.041e-05,2]
[423224419,1779951039000,-500.0,9.041e-05,2]
[423224420,1779951039000,-500.0,9.041e-05,2]
[423224413,1779951039000,-500.0,9.041e-05,2]
[423224415,1779951039000,-500.0,9.041e-05,2]
[423224422,1779951039000,-500.0,9.041e-05,2]
[423224424,1779951039000,-500.0,9.041e-05,2]
[423224428,1779951039000,-389.93359939,9.056e-05,2]
[423224430,1779951039000,-750.00818837,9.07e-05,2]
[423224449,1779951039000,-31.63833587,9.315e-05,2]
[423224441,1779951039000,-1312.53981563,9.07e-05,2]
[423224447,1779951039000,-500.53103733,9.315e-05,2]
[423224444,1779951039000,-1102.60214488,9.146e-05,7]
[423224453,1779951039000,-500.0,9.315e-05,2]
[423224451,1779951039000,-468.36166413,9.315e-05,2]
[423224455,1779951039000,-1566.04,9.315e-05,2]
[423224463,1779951039000,-486.08150178,9.315e-05,2]
[423224457,1779951039000,-500.0,9.315e-05,2]
[423224459,1779951039000,-345.62958158,9.315e-05,2]
[423224461,1779951039000,-500.0,9.315e-05,2]
[423224465,1779951039000,-500.0,9.315e-05,2]
[423224467,1779951039000,-500.0,9.315e-05,2]
[423224469,1779951039000,-500.0,9.315e-05,2]
[423224344,1779951039000,-500.0,8.767e-05,2]
[423224402,1779951039000,-500.0,9.041e-05,2]
[423224403,1779951039000,-500.0,9.041e-05,2]
[423224398,1779951039000,-500.0,9.041e-05,2]
[423224350,1779951039000,-500.0,8.767e-05,2]
[423224348,1779951039000,-500.0,8.767e-05,2]
[423224351,1779951039000,-500.0,8.767e-05,2]
[423224353,1779951039000,-500.0,8.767e-05,2]
[423224355,1779951039000,-1656.17,8.767e-05,2]
[423224365,1779951039000,-500.0,8.767e-05,2]
[423224367,1779951039000,-500.0,8.767e-05,2]
[423224357,1779951039000,-500.0,8.767e-05,2]
[423224370,1779951039000,-500.0,8.767e-05,2]
[423224361,1779951039000,-500.0,8.767e-05,2]
[423224359,1779951039000,-500.0,8.767e-05,2]
[423224363,1779951039000,-500.0,8.767e-05,2]
[423224405,1779951039000,-500.0,9.041e-05,2]
[423224373,1779951039000,-500.0,8.767e-05,2]
[423224377,1779951039000,-347.94925023,8.954e-05,7]
[423224400,1779951039000,-500.0,9.041e-05,2]
[423224392,1779951039000,-500.0,9.041e-05,2]
[423224388,1779951039000,-440.91632981,9.041e-05,2]
[423224387,1779951039000,-1566.04,9.041e-05,2]
[423224375,1779951039000,-720.0,8.882e-05,2]
[423224390,1779951039000,-500.0,9.041e-05,2]
[423224396,1779951039000,-500.0,9.041e-05,2]
[423224384,1779951039000,-500.39818,9.041e-05,2]
[423224383,1779951039000,-500.0,9.041e-05,2]
[423224381,1779951039000,-500.0,9.041e-05,2]
[423224379,1779951039000,-500.0,9.041e-05,2]
[423224394,1779951039000,-500.0,9.041e-05,2]
[423224487,1779951040000,-500.0,9.315e-05,2]
[423224480,1779951040000,-500.0,9.315e-05,2]
[423224482,1779951040000,-329.01053434,9.315e-05,2]
[423224489,1779951040000,-500.0,9.315e-05,2]
[423224476,1779951040000,-1656.17,9.315e-05,2]
[423224472,1779951040000,-500.0,9.315e-05,2]
[423224470,1779951040000,-500.0,9.315e-05,2]
[423224474,1779951040000,-500.0,9.315e-05,2]
[423224478,1779951040000,-500.0,9.315e-05,2]
[423224485,1779951040000,-170.98946566,9.315e-05,2]
[423224592,1779951040000,-74.23588539,9.589e-05,2]
[423224494,1779951040000,-500.0,9.315e-05,2]
[423224492,1779951040000,-500.0,9.315e-05,2]
[423224496,1779951040000,-666.74856531,9.589e-05,2]
[423224566,1779951040000,-78.76083947,9.589e-05,2]
[423224568,1779951040000,-1267.68104321,9.589e-05,2]
[423224605,1779951040000,-100.29852413,9.589e-05,2]
[423224594,1779951040000,-2385.63009528,9.589e-05,2]
[423224596,1779951040000,-315.10196433,9.589e-05,2]
[423224601,1779951040000,-20.98537964,9.589e-05,2]
[423224603,1779951040000,-604.95721914,9.589e-05,2]
[423224491,1779951040000,-500.0,9.315e-05,2]
[423225026,1779951044000,-975.18097657,9.589e-05,2]
[423225028,1779951044000,-1680.43671984,9.589e-05,2]
[423225032,1779951044000,-349.08700768,9.589e-05,2]
[423225034,1779951044000,-368.27781339,9.589e-05,2]
[423225030,1779951044000,-305.45113172,9.589e-05,2]
[423225255,1779951046000,-620.66708974,9.589e-05,2]
[423225260,1779951047000,-500.0,9.589e-05,2]
[423225257,1779951047000,-500.0,9.589e-05,2]
[423225256,1779951047000,-2738.60212075,9.589e-05,2]
[423225259,1779951047000,-1566.04,9.589e-05,2]
[423225258,1779951047000,-500.0,9.589e-05,2]
[423225262,1779951047000,-500.0,9.589e-05,2]
[423225261,1779951047000,-500.0,9.589e-05,2]
[423225263,1779951047000,-500.0,9.589e-05,2]
[423225270,1779951047000,-308.04136532,9.589e-05,2]
[423225264,1779951047000,-500.0,9.589e-05,2]
[423225266,1779951047000,-500.0,9.589e-05,2]
[423225268,1779951047000,-119.11731814,9.589e-05,2]
[423225267,1779951047000,-1656.17,9.589e-05,2]
[423225269,1779951047000,-380.88268186,9.589e-05,2]
[423225265,1779951047000,-500.0,9.589e-05,2]
[423225280,1779951672000,-152.0,7.817e-05,2]
[423225297,1779952160000,-381.0,7.21e-05,2]
[423225296,1779952160000,-619.0,7.21e-05,2]
[423225299,1779952162000,-500.0,7.21e-05,2]
[423225298,1779952162000,-0.68998597,7.21e-05,2]
[423225300,1779952162000,-165.32989495,7.21e-05,2]
[423225302,1779952162000,-211.03114829,7.21e-05,2]
[423225301,1779952162000,-333.98011908,7.21e-05,2]
[423225304,1779952162000,-288.96885171,7.21e-05,2]
[423225307,1779952162000,-288.96885171,7.21e-05,2]
[423225306,1779952162000,-500.0,7.21e-05,2]
[423225305,1779952162000,-211.03114829,7.21e-05,2]
[423225308,1779952162000,-211.03114829,7.21e-05,2]
[423225309,1779952162000,-500.0,7.21e-05,2]
[423225310,1779952162000,-288.96885171,7.21e-05,2]
[423225303,1779952162000,-500.0,7.21e-05,2]
[423225312,1779952163000,-500.0,7.21e-05,2]
[423225314,1779952163000,-59.74827811,7.21e-05,2]
[423225313,1779952163000,-229.2205736,7.21e-05,2]
[423225311,1779952163000,-211.03114829,7.21e-05,2]
[423225316,1779952163000,-500.0,7.21e-05,2]
[423225317,1779952163000,-59.74827811,7.21e-05,2]
[423225318,1779952163000,-440.25172189,7.21e-05,2]
[423225315,1779952163000,-440.25172189,7.21e-05,2]
[423225320,1779952164000,-59.74827811,7.21e-05,2]
[423225319,1779952164000,-500.0,7.21e-05,2]
[423225321,1779952164000,-440.25172189,7.21e-05,2]
[423225323,1779952164000,-59.74827811,7.21e-05,2]
[423225322,1779952164000,-500.0,7.21e-05,2]
[423225324,1779952164000,-440.25172189,7.21e-05,2]
[423225325,1779952164000,-500.0,7.21e-05,2]
[423225326,1779952164000,-59.74827811,7.21e-05,2]
[423225328,1779952164000,-500.0,7.21e-05,2]
[423225327,1779952164000,-440.25172189,7.21e-05,2]
[423225329,1779952164000,-59.74827811,7.21e-05,2]
[423225330,1779952165000,-440.25172189,7.21e-05,2]
[423225332,1779952165000,-259.74827811,7.21e-05,2]
[423225335,1779952165000,-209.74827811,7.211e-05,2]
[423225334,1779952165000,-550.0,7.21e-05,2]
[423225333,1779952165000,-240.25172189,7.21e-05,2]
[423225331,1779952165000,-300.0,7.21e-05,2]
[423225339,1779952166000,-1000.0,7.211e-05,2]
[423225338,1779952166000,-1000.0,7.211e-05,2]
[423225336,1779952166000,-1000.0,7.211e-05,2]
[423225337,1779952166000,-1000.0,7.211e-05,2]
[423225342,1779952167000,-1000.0,7.211e-05,2]
[423225341,1779952167000,-1000.0,7.211e-05,2]
[423225340,1779952167000,-1000.0,7.211e-05,2]
[423225343,1779952168000,-1000.0,7.211e-05,2]
[423225345,1779952168000,-1000.0,7.211e-05,2]
[423225344,1779952168000,-1000.0,7.211e-05,2]
[423225348,1779952169000,-1000.0,7.211e-05,2]
[423225347,1779952169000,-1000.0,7.211e-05,2]
[423225346,1779952169000,-1000.0,7.211e-05,2]
[423225354,1779952171000,-1000.0,7.211e-05,2]
[423225353,1779952171000,-1000.0,7.211e-05,2]
[423225352,1779952171000,-1000.0,7.211e-05,2]
[423225351,1779952171000,-1000.0,7.211e-05,2]
[423225350,1779952171000,-1000.0,7.211e-05,2]
[423225349,1779952171000,-1000.0,7.211e-05,2]
[423225357,1779952172000,-1000.0,7.211e-05,2]
[423225356,1779952172000,-1000.0,7.211e-05,2]
[423225355,1779952172000,-1000.0,7.211e-05,2]
[423225358,1779952173000,-1000.0,7.211e-05,2]
[423225360,1779952173000,-1000.0,7.211e-05,2]
[423225359,1779952173000,-1000.0,7.211e-05,2]
[423225363,1779952174000,-1000.0,7.211e-05,2]
[423225362,1779952174000,-1000.0,7.211e-05,2]
[423225361,1779952174000,-1000.0,7.211e-05,2]
[423225365,1779952175000,-1000.0,7.211e-05,2]
[423225364,1779952175000,-1000.0,7.211e-05,2]
[423225368,1779952176000,-1000.0,7.211e-05,2]
[423225367,1779952176000,-1000.0,7.211e-05,2]
[423225366,1779952176000,-1000.0,7.211e-05,2]
[423225370,1779952177000,-1000.0,7.211e-05,2]
[423225369,1779952177000,-1000.0,7.211e-05,2]
[423225371,1779952177000,-1000.0,7.211e-05,2]
[423225374,1779952178000,-1000.0,7.211e-05,2]
[423225373,1779952178000,-1000.0,7.211e-05,2]
[423225372,1779952178000,-1000.0,7.211e-05,2]
[423225377,1779952179000,-1000.0,7.211e-05,2]
[423225376,1779952179000,-1000.0,7.211e-05,2]
[423225375,1779952179000,-1000.0,7.211e-05,2]
[423225380,1779952180000,-1000.0,7.211e-05,2]
[423225379,1779952180000,-1000.0,7.211e-05,2]
[423225378,1779952180000,-1000.0,7.211e-05,2]
[423225381,1779952181000,-1000.0,7.211e-05,2]
[423225383,1779952181000,-1000.0,7.211e-05,2]
[423225382,1779952181000,-1000.0,7.211e-05,2]
[423225384,1779952182000,-1000.0,7.211e-05,2]
[423225386,1779952183000,-1000.0,7.211e-05,2]
[423225385,1779952183000,-1000.0,7.211e-05,2]
[423225389,1779952184000,-1000.0,7.211e-05,2]
[423225388,1779952184000,-1000.0,7.211e-05,2]
[423225387,1779952184000,-1000.0,7.211e-05,2]
[423225392,1779952185000,-1000.0,7.211e-05,2]